Cogmind - Beta 11 X6 @@@ ROGUE MODE // 2021.07.17 @ 23:17:21 Player: Runia Result: Self-destructed Performance ------------- Evolutions (2) 1000 Regions Visited (3) 600 Robots Destroyed (51) 255 Value Destroyed (1406) 1406 Prototype IDs (4) 80 Alien Tech Used (0) 0 Bonus (0) 0 TOTAL SCORE: 3341 Bonus ------- None Cogmind --------- Core Integrity 379/550 Matter 94/300 Energy 100/100 System Corruption 0% Temperature Warning (303) Movement Rolling (120) Ox2 Location -8/Materials Parts ------- > --- POWER (1) -------- (None) > --- PROPULSION (4) --- Light Treads Armored Wheel > --- UTILITY (3) ------ Large Storage Unit Hardened Medium Armor Plating Hacking Suite > --- WEAPON (3) ------- High-powered Shotgun High-powered Shotgun > --- INVENTORY (15) --- Heavy Ion Engine Improved Heat Sink High-capacity Battery (250) High-capacity Matter Pod (200) System Shield System Shield Improved Medium Laser Improved Medium Laser EM Pulse Cannon Autogun Autogun High-powered Shotgun Datajack Peak State ------------ > --- POWER ------------ Heavy Ion Engine > --- PROPULSION ------- Light Treads Light Treads Aluminum Leg Armored Wheel > --- UTILITY ---------- Large Storage Unit Hardened Medium Armor Plating Hacking Suite > --- WEAPON ----------- High-powered Shotgun High-powered Shotgun High-powered Shotgun > --- INVENTORY -------- Heavy Ion Engine Improved Heat Sink High-capacity Battery High-capacity Matter Pod System Shield System Shield Improved Medium Laser Improved Medium Laser EM Pulse Cannon Autogun Autogun High-powered Shotgun Datajack [Rating: 27] Favorites ----------- Power Cooled Ion Engine Engine Cooled Ion Engine Propulsion Aluminum Leg Treads Light Treads Leg Aluminum Leg Wheel Armored Wheel Utility Large Storage Unit Device Heat Sink Storage Large Storage Unit Hackware Hacking Suite Protection Medium Armor Plating Weapon Autogun Energy Gun Small Laser Ballistic Gun Autogun Ballistic Cannon Light Cannon Slashing Weapon Mining Claw Special Melee Weapon Datajack Build | -11 -10 -9 -8 ------- Run | Scr Mat Mat Mat Slots Evolved 4 | . . 2 2 Power . | . . . . Propulsion 2 | . . 1 1 Utility 1 | . . 1 . Weapon 1 | . . . 1 Parts Attached 30 | . 8 15 7 Power 2 | . 1 1 . Engine 2 | . 1 1 . Core . | . . . . Reactor . | . . . . Propulsion 10 | . 1 5 4 Treads 2 | . . . 2 Leg 7 | . 1 5 1 Wheel 1 | . . . 1 Hover . | . . . . Flight . | . . . . Utility 7 | . 3 2 2 Device 1 | . 1 . . Storage 1 | . 1 . . Processor . | . . . . Hackware 1 | . . 1 . Protection 4 | . 1 1 2 Artifact . | . . . . Weapon 11 | . 3 7 1 Energy Gun . | . . . . Energy Cannon . | . . . . Ballistic Gun 7 | . 2 4 1 Ballistic Cannon 1 | . 1 . . Launcher . | . . . . Special Weapon . | . . . . Impact Weapon . | . . . . Slashing Weapon 2 | . . 2 . Piercing Weapon . | . . . . Special Melee Weapon 1 | . . 1 . Unidentified Prototypes 2 | . 1 1 . Parts Lost 5 | . . . 5 Power 1 | . . . 1 Propulsion 1 | . . . 1 Utility 2 | . . . 2 Weapon 1 | . . . 1 Highest Loss Streak 4 | . . . 4 Average Slot Usage (%) 99 | . 98 99 99 Engine 11 | . 14 11 9 Leg 30 | . 28 32 30 Device 2 | . 6 . . Storage 11 | . 14 11 9 Hackware 6 | . . 11 9 Protection 9 | . 6 11 8 Ballistic Gun 22 | . 20 21 27 Ballistic Cannon 1 | . 4 . . Naked Turns . | . . . . Heaviest Build 44 | 11 41 41 44 Greatest Support 40 | 20 20 30 40 Greatest Overweight (x) 3 | . 2 1 3 Average Overweight (x) . | . . 1 1 Largest Inventory Capacity 15 | 8 15 15 15 Average Capacity 13 | 8 11 15 15 Most Carried 15 | 5 15 15 15 Average Carried 13 | 4 10 14 13 Final Capacity 15 | 8 15 15 15 Final Carried 15 | 4 15 15 13 Class Distribution -------------------- 58% | Mutant 24% | Scavenger-Mutant 13% | Scavenger-Tank 3% | Tank Dominant Class ---------------- Mutant | -10/Materials Scavenger-Mutant | -9/Materials Scavenger-Tank | -8/Materials Resources | -11 -10 -9 -8 ----------- Run | Scr Mat Mat Mat Matter Collected 1460 | 186 325 712 237 Remotely . | . . . . Salvage Created 1937 | . 424 1091 422 Parts 123 | . 34 64 25 Haulers Intercepted 4 | . 1 2 1 Recyclers Shooed 5 | . 1 4 . Parts Field Recycled . | . . . . Retrieved Matter . | . . . . Parts Self-Destructed . | . . . . Prevented . | . . . . Kills | -11 -10 -9 -8 ------- Run | Scr Mat Mat Mat Combat Hostiles Destroyed 31 | . 8 14 9 Guns 29 | . 6 14 9 Cannons 2 | . 2 . . Classes Destroyed 12 | . 6 4 2 Worker 1 | . . 1 . Builder 1 | . 1 . . Hauler 4 | . 1 2 1 Recycler 4 | . . 3 1 Operator 3 | . 1 2 . Watcher 7 | . 3 4 . Swarmer 2 | . 2 . . Grunt 18 | . 6 9 3 Brawler 1 | . . 1 . Duelist 1 | . . . 1 Sentry 8 | . . 4 4 Heavy 1 | . . . 1 Best Kill Streak 3 | . 3 3 3 Combat Bots Only 3 | . 3 3 3 Max Kills in Single Turn 2 | . 1 2 2 Gunslinging 1 | . . 1 1 Exploded . | . . . . Melee . | . . . . Uniques/NPCs Destroyed . | . . . . Combat | -11 -10 -9 -8 -------- Run | Scr Mat Mat Mat Damage Taken 2337 | . 212 695 1430 Core 338 | . 54 113 171 Absorbed by Shields . | . . . . Core Remaining (%) 83 | 100 78 71 . Volleys Fired 123 | . 34 62 27 Largest 3 | . 2 2 3 Hottest 75 | . 60 50 75 Shots Fired 269 | . 68 124 77 Gun 264 | . 63 124 77 Cannon 5 | . 5 . . Launcher . | . . . . Special . | . . . . Kinetic 253 | . 52 124 77 Thermal 16 | . 16 . . Explosive . | . . . . Electromagnetic . | . . . . Robot Hit Streak 14 | . 7 14 7 Robot Miss Streak 4 | . 4 4 3 Penetration Max . | . . . . Secondary Targets 5 | . . 2 3 Max Gunslinging Chain 1 | . . 1 1 Shots Hit Robots 183 | . 45 79 59 Core Hits 93 | . 22 37 34 Critical Kills . | . . . . Critical Parts Destroyed 2 | . . 1 1 Critical Strikes 4 | . . 1 3 Destroy 4 | . . 1 3 Melee Attacks . | . . . . Impact . | . . . . Slashing . | . . . . Piercing . | . . . . Sneak Attacks . | . . . . Combat Hostiles . | . . . . Follow-up Attacks . | . . . . Damage Inflicted 3048 | . 622 1178 1248 Guns 2973 | . 547 1178 1248 Cannons 75 | . 75 . . Explosions . | . . . . Melee . | . . . . Ramming . | . . . . Kinetic 2918 | . 492 1178 1248 Thermal 130 | . 130 . . Explosive . | . . . . Electromagnetic . | . . . . Impact . | . . . . Slashing . | . . . . Piercing . | . . . . Highest Corruption 2 | . . 2 . Average Corruption 2 | . . 2 . Corruption Purged . | . . . . Effects 2 | . . 2 . Message Errors 1 | . . 1 . Heat Flow Errors 1 | . . 1 . Overload Shots . | . . . . Overflow Damage . | . . . . Projectiles . | . . . . Explosions . | . . . . Melee . | . . . . Knockbacks . | . . . . Impact . | . . . . Kinetic . | . . . . Secondary . | . . . . Self-Inflicted Damage . | . . . . Shots . | . . . . Rammed . | . . . . Targets Rammed . | . . . . Kicked . | . . . . Crushed . | . . . . Highest Temperature 290 | . 31 112 290 Average Temperature 28 | . 10 11 61 Received Heat Transfer 897 | . 81 285 531 Effects 1 | . . . 1 Interference 1 | . . . 1 Siege Activations . | . . . . Robots Corrupted . | . . . . Combat Hostiles . | . . . . Parts Fried . | . . . . Impact Corruptions . | . . . . Robots Melted . | . . . . Combat Hostiles . | . . . . Parts Melted . | . . . . Heat Transferred 300 | . 300 . . Parts Sabotaged . | . . . . Parts Stolen . | . . . . Parts Stripped . | . . . . Power Chain Reactions . | . . . . Missiles Intercepted . | . . . . Alert | -11 -10 -9 -8 ------- Run | Scr Mat Mat Mat Peak Influence 359 | . 142 187 359 Initial 40 | . . . 40 Average 89 | . 45 97 157 Maximum Alert Level 1 | . . . 1 Low Security (%) 95 | 100 100 100 70 Level 1 4 | . . . 29 Level 2 . | . . . . Level 3 . | . . . . Level 4 . | . . . . Level 5 . | . . . . High Security . | . . . . Max Security . | . . . . Squads Dispatched 8 | . 1 4 3 Investigation 2 | . . 1 1 Extermination . | . . . . Reinforcement 6 | . 1 3 2 Assault . | . . . . Garrison . | . . . . Intercept . | . . . . Construction Impeded . | . . . . Haulers Reinforced 1 | . . . 1 Active Scanning Responses . | . . . . Cargo Convoy Interrupts . | . . . . Stealth | -11 -10 -9 -8 --------- Run | Scr Mat Mat Mat Distress Signals 1 | . 1 . . Communications Jammed . | . . . . Distress Signals . | . . . . Times Spotted 53 | . 15 21 17 Peak Tracking Total 9 | . 4 3 9 Tactical Retreats 2 | . 2 . . Traps | -11 -10 -9 -8 ------- Run | Scr Mat Mat Mat Traps Triggered 1 | . . 1 . Indirectly . | . . . . Trap Hack Attempts 3 | . . 3 . Triggered . | . . . . Disarmed 1 | . . 1 . Reprogrammed . | . . . . Reused . | . . . . Traps Extracted . | . . . . Installed . | . . . . Triggered . | . . . . Machines | -11 -10 -9 -8 ---------- Run | Scr Mat Mat Mat Machines Disabled 2 | . . 1 1 Max in Single Turn 1 | . . 1 1 Garrison Access 1 | . . . 1 Machines Sabotaged . | . . . . Garrisons Compromised . | . . . . Overloaded Fab Kills . | . . . . Fab Network Shutdowns . | . . . . Hacking | -11 -10 -9 -8 --------- Run | Scr Mat Mat Mat Machines Accessed 16 | . 5 7 4 Terminals 11 | . 5 4 2 Fabricators . | . . . . Repair Stations 1 | . . 1 . Recycling Units . | . . . . Scanalyzers 3 | . . 2 1 Garrison Access 1 | . . . 1 Total Hacks 55 | . 19 26 10 Successful 31 | . 12 15 4 Failed 24 | . 7 11 6 Catastrophic 3 | . . 1 2 Database Lockouts . | . . . . Manual 29 | . 13 15 1 Terminals 39 | . 19 15 5 Fabricators . | . . . . Repair Stations 4 | . . 4 . Recycling Units . | . . . . Scanalyzers 9 | . . 7 2 Garrison Access 3 | . . . 3 Terminal Hacks 9 | . 7 1 1 Robot Analysis 1 | . 1 . . Prototype ID Bank 1 | . 1 . . Branch Access Points 1 | . . . 1 Terminal Index 1 | . 1 . . Scanalyzer Index 1 | . 1 . . Unreport Threat 2 | . 1 1 . Zone Layout 2 | . 2 . . Fabricator Hacks . | . . . . Repair Station Hacks 4 | . . 4 . Scan Component 2 | . . 2 . Repair 2 | . . 2 . Recycling Unit Hacks . | . . . . Scanalyzer 9 | . . 7 2 Insert Component 4 | . . 3 1 Analyze 5 | . . 4 1 Garrison Access Hacks . | . . . . Unauthorized Hacks 9 | . 5 3 1 Terminals 8 | . 5 3 . Botnet 8 | . 5 3 . Fabricators . | . . . . Repair Stations . | . . . . Recycling Units . | . . . . Scanalyzers . | . . . . Garrison Access 1 | . . . 1 Jam 1 | . . . 1 Data Cores Recovered . | . . . . Used . | . . . . Hacking Detections 15 | . 4 7 4 Full Trace Events 1 | . . 1 . Feedback Events . | . . . . Feedback Blocked . | . . . . Robot Schematics Acquired . | . . . . Robots Built . | . . . . Matter . | . . . . Time . | . . . . Total Robot Build Rating . | . . . . Part Schematics Acquired 4 | . . 3 1 Parts Built . | . . . . Matter . | . . . . Time . | . . . . Total Part Build Rating . | . . . . Parts Repaired 2 | . . 2 . Time 58 | . . 58 . Parts Recycled . | . . . . Recycled Matter . | . . . . Retrieved Matter . | . . . . Retrieved Components . | . . . . Parts Scanalyzed 4 | . . 3 1 Part Schematics Acquired 4 | . . 3 1 Parts Damaged . | . . . . Bothacking | -11 -10 -9 -8 ------------ Run | Scr Mat Mat Mat Used RIF Installer . | . . . . Robots Hacked . | . . . . Non-combat . | . . . . Combat . | . . . . Robot Hacks Applied . | . . . . Relay Couplers Released . | . . . . Robots Rewired . | . . . . Allies Hacked . | . . . . Hacks Repelled . | . . . . Allies | -11 -10 -9 -8 -------- Run | Scr Mat Mat Mat Total Allies . | . . . . Largest Group . | . . . . Highest-Rated Group . | . . . . Highest-Rated Ally . | . . . . Total Orders . | . . . . Ally Attacks . | . . . . Total Damage . | . . . . Kills . | . . . . Allies Corrupted . | . . . . Allies Melted . | . . . . Intel | -11 -10 -9 -8 ------- Run | Scr Mat Mat Mat Robot Analysis Total 1 | . 1 . . Derelict Logs Recovered . | . . . . Drone Launches . | . . . . Drone Recoveries . | . . . . Exploration | -11 -10 -9 -8 ------------- Run | Scr Mat Mat Mat Turns Passed 2908 | 2 1003 1416 487 Spaces Moved 1210 | 1 476 550 183 Core . | . . . . Treads 6 | . . . 6 Legs 1186 | 1 476 550 159 Wheels 18 | . . . 18 Hover . | . . . . Flight . | . . . . Fastest Speed 120 | 120 120 200 120 Average Speed 190 | 120 178 200 194 Slowest Speed 280 | 120 280 200 260 Overloaded Moves . | . . . . Propulsion Burnouts . | . . . . Robots Hopped . | . . . . Cave-ins Triggered . | . . . . Exploration Rate (%) 42 | 2 82 64 22 Regions Visited 3 Branch Regions . Pre-discovered Areas . | . . . . Known Exits Taken . | . . . . Unknown Exits Taken 3 | 1 1 1 . Scrap Searched . | . . . . Spaces Dug . | . . . . Terrain Destroyed . | . . . . Melee . | . . . . Projectile . | . . . . AOE . | . . . . Terrain Rammed . | . . . . Walls Destroyed . | . . . . Machines Disabled . | . . . . Actions | -11 -10 -9 -8 --------- Run | Scr Mat Mat Mat Total 1603 | 2 574 770 257 Wait 157 | . 17 112 28 Move 1207 | . 475 549 183 Hop . | . . . . Pick Up 45 | . 25 13 7 Fast Attach 4 | . 1 3 . Attach 13 | . 4 2 7 Detach . | . . . . Swap 13 | . 3 10 . Drop 38 | 2 15 16 5 Fire 123 | . 34 62 27 Melee . | . . . . Ram . | . . . . Kick . | . . . . Crush . | . . . . Escape Stasis . | . . . . Rewire . | . . . . Trap 3 | . . 3 . Miscellaneous . | . . . . Route ------- -11/Scrapyard -10/Materials (discovered 2 exits: *Mat / [*Min]) -9/Materials (discovered 5 exits: *Mat x3 / [*Min x2]) -8/Materials History --------- Turn | Location | Event 3 | -11/Scrapyard | Discovered new exit (range 0) 3 | -11/Scrapyard | Entered Materials 318 | -10/Materials | Build established: Mutant 367 | -10/Materials | Discovered new exit (range 5) 428 | -10/Materials | Discovered new exit (range 9) 1006 | -10/Materials | Entered another Materials area 1006 | -9/Materials | Evolved 2 slots: Propulsion x1, Utility x1 1481 | -9/Materials | Discovered new exit (range 7) 1590 | -9/Materials | Discovered new exit (range 14) 1861 | -9/Materials | Discovered new exit (range 3) 1974 | -9/Materials | Repaired Aluminum Leg 2008 | -9/Materials | Repaired Autogun 2209 | -9/Materials | Discovered new exit (range 7) 2269 | -9/Materials | Discovered new exit (range 15) 2271 | -9/Materials | Build established: Scavenger-Mutant 2422 | -9/Materials | Entered another Materials area 2422 | -8/Materials | Evolved 2 slots: Propulsion x1, Weapon x1 2734 | -8/Materials | Build established: Scavenger-Tank 2909 | -8/Materials | Self-destructed Last Messages --------------- K-01 Serf collects debris. L-31 Rogue destroyed. Switching to secondary target: G-47 Trooper. R-06 Scavenger collects Aluminum Leg. K-01 Serf collects debris. Critical hit (Burn: +37). K-01 Serf collects debris. Overheating: System interference. Hpw. Shotgun temporarily disabled. R-06 Scavenger collects Aluminum Leg. K-01 Serf collects debris. Hvy. Ion Engine destroyed. Aluminum Leg destroyed. K-01 Serf collects debris. Critical hit (Burn: +37). U-05 Engineer lays Concrete. Hpw. Shotgun destroyed. K-01 Serf collects debris. U-05 Engineer builds a Door. K-01 Serf collects debris. Map ----- +----------------------------------------------------+ | ?????????????????????????????????????????????????? | | ?????????????????????????????????????????????????? | | ?????????????????????????????????????????????????? | | ?????????????????????????????????????????????????? | | ?????????????????????????????????????????????????? | | ?????????????????????????????????????????????????? | | ?????????????????????????????????????????????????? | | ?????????????????????????????????????????????????? | | ?????????????????????????????????????????????????? | | ?????????????????????????????????????????????????? | | ?????????????????????????????????????????????????? | | ?????????????????????????????????????????????????? | | ?????????????????????????????????????????????????? | | ?????????????????????????????????????????????????? | | ?????????????????????????????????????????????????? | | ?????????????????????????????????????????????????? | | ?????????????????????????????????????????????????? | | ?????????????????????######??????????????????????? | | ?????????????????????? #??????????????????????? | | ?????????????????????? """#??????????????????????? | | ???????????????????????"""#??????????????????????? | | ???????????????????????"""#####??????????????????? | | ???????????????????????? # ""#??????????????????? | | ???????????????????????? !""G"#??????????????????? | | ?????????????# ###/#### "####???????????????? | | ?????????? u %=ugg%@ % % #???????????????? | | ?????????? k g=! ggbk % % #???????????????? | | ?????????? %g % % #???????????????? | | ???????????### ###+####### #???????????????? | | ?????????????### ??? ??????# #???????????????? | | ???????????????????# "???????# #???????????????? | | ???????????????????# ????????# #???????????????? | | ???????????????????#?????????# #???????????????? | | ?????????????????????????????# #???????????????? | | ?????????????????###########?# #???????????????? | | ?????????????????# ### #???????????????? | | ?????????????????# == # #???????????????? | | ?????????????????# ! = # #???????????????? | | ?????????????????# + ##########??????? | | ?????????????????# """ [ # # ! ######## | | ?????????????????# """ [ # # ## ! | | ?????????????????# """ ## ## ## "" | | ?????????????????# ## ## [ ## "" [! | | ?????????????????############ ## ]] ## "T [! | | ????????????????????????????# ## / ] ## "" ! | | ????????????????????????????# ## ]! ## "" | | ????????????????????????????# ## ## | | ???????????????????????????## ## ## * | | ???????????????????????????# ###+###########"# | | ???????????????????????????# "" / ! | +----------------------------------------------------+ Best States ------------- Heat Dissipation 35 Energy Generation 14 Energy Capacity 280 Matter Stores 300 Matter Capacity 300 Sight Range 16 Terrain Scan Density 10 Armor Coverage 225 Evasion (%) 55 Recoil Reduction 2 Offensive Hacking 10 Item Schematics ----------------- Med. Armor Plating | -9/Materials | Scanalyzed Sensor Array | -9/Materials | Scanalyzed Cld. Ion Engine | -9/Materials | Scanalyzed Autogun | -8/Materials | Scanalyzed Robot Schematics ------------------ None Fabricated ------------ Nothing Alien Tech Used ----------------- None Achievements -------------- None Challenges ------------ None Game ------ Seed BiometalPropulsionWand Manual? 0 Play Time 00:19:08 Cumulative 239.6 hours Start 2021.07.17 @ 22:58:15 End 2021.07.17 @ 23:17:21 Sessions 1 Manual Loads 0 Difficulty Rogue Special Mode None Game No. 294 Rogue 294 Adventurer 0 Explorer 0 Win Type - Total 3 Types 3/0/0/0/0/0/0/0/0 Lore% 64 Gallery% 80 Achievement% 59 Wizard Run 0 Options --------- ASCII 0 Keyboard 0 Movement Mouse Keybinds 1 Fullscreen 2 Font 24/Smallcaps Map View 76x50 Tactical HUD 1 Map Filters NONE Filters NONE Steam 1 RUN: e853a500-a424-4a68-8a50-7753e96d9861